bitfinex-derivatives/quotes_SOLF0:USTF0_20241107
["timestamp","ask_amount","ask_price","bid_price","bid_amount"]
[1730952320080,7.42956053,189.32,189.2,11.4404371]
[1730952320278,10.1492371,189.31,189.2,10.1492371]
[1730952320482,2.6401,189.26,189.2,10.1492371]
[1730952321083,2.6401,189.26,189.18,3.8936]
[1730952321283,2.6401,189.26,189.19,10.1492371]
[1730952321484,2.6401,189.26,189.19,12.7903371]
[1730952322883,2.64,189.28,189.21,12.7899371]
[1730952323079,1.2262,189.32,189.21,10.1492371]
[1730952323482,1.2262,189.32,189.24,10.1492371]
[1730952324084,2.6396,189.3,189.24,10.1492371]
[1730952324584,2.6396,189.3,189.23,2.6405]
[1730952324786,1.2262,189.32,189.19,11.4451371]
[1730952324991,7.42956053,189.32,189.19,11.4451371]
[1730952325191,7.42956053,189.32,189.22,10.1492371]
[1730952325589,7.42956053,189.32,189.23,2.6404]
[1730952325790,1.2262,189.32,189.23,2.6404]
[1730952326185,1.3103,189.33,189.25,10.1492371]
[1730952326388,2.6391,189.33,189.26,2.6401]
[1730952326593,2.6391,189.33,189.25,10.1492371]
[1730952327099,2.6389,189.35,189.27,10.1492371]
[1730952327299,1.189,189.36,189.27,10.1492371]
[1730952327799,10.1492371,189.38,189.27,10.1492371]
[1730952327996,10.1492371,189.38,189.23,3.52]
[1730952327997,9.72336053,189.39,189.3,10.1492371]
[1730952328209,3.52,189.39,189.3,10.1492371]
[1730952329311,2.6388,189.36,189.3,10.1492371]
[1730952329714,2.6388,189.36,189.23,3.52]
[1730952330012,2.6388,189.36,189.3,10.1492371]
[1730952331111,10.1492371,189.39,189.23,3.52]
[1730952331407,10.1492371,189.39,189.25,10.1492371]
[1730952331808,10.1492371,189.39,189.26,2.6401]
[1730952332710,10.1492371,189.39,189.25,10.1492371]
[1730952333217,10.1492371,189.36,189.25,10.1492371]
[1730952333907,6.20336053,189.4,189.3,10.1492371]
[1730952334108,6.20336053,189.4,189.23,3.52]
[1730952334109,10.1492371,189.45,189.33,10.1492371]
[1730952335315,2.6385,189.38,189.33,10.1492371]
[1730952335710,10.1492371,189.42,189.3,10.1492371]
[1730952336006,10.1492371,189.39,189.27,10.1492371]
[1730952336403,2.6392,189.33,189.27,10.1492371]
[1730952338216,2.5098,189.38,189.27,10.1492371]
[1730952338412,2.5098,189.38,189.25,13.6692371]
[1730952338621,2.5098,189.38,189.25,10.1492371]
[1730952338815,10.1492371,189.36,189.25,10.1492371]
[1730952339314,2.6395,189.31,189.25,10.1492371]
[1730952341113,16.35259763,189.36,189.22,13.6692371]
[1730952341114,25.55336053,189.35,189.22,13.6692371]
[1730952341320,6.20336053,189.34,189.22,13.6692371]
[1730952341714,2.6398,189.29,189.22,16.3098371]
[1730952342116,6.20336053,189.34,189.22,16.3098371]
[1730952342916,19.35,189.35,189.22,12.7898371]
[1730952343117,19.35,189.35,189.22,16.3098371]
[1730952343518,2.6398,189.28,189.22,16.3098371]
[1730952344516,2.6398,189.28,189.22,13.6692371]
[1730952344723,2.6398,189.28,189.23,2.6405]
[1730952345915,2.6398,189.28,189.22,13.6692371]
[1730952346218,2.6394,189.31,189.25,10.1492371]
[1730952346412,1.2074,189.34,189.25,10.1492371]
[1730952347017,10.1492371,189.36,189.25,10.1492371]
[1730952348114,2.6393,189.32,189.25,10.1492371]
[1730952348912,2.6393,189.32,189.27,2.6398]
[1730952349720,10.1492371,189.36,189.23,13.6692371]
[1730952350226,2.6395,189.31,189.25,2.6401]
[1730952350418,10.1492371,189.33,189.22,10.1492371]
[1730952350723,4.72,189.32,189.2,6.0265]
[1730952350913,2.6401,189.26,189.2,6.0265]
[1730952351310,2.6401,189.26,189.2,3.52]
[1730952351623,2.6403,189.25,189.2,2.6409]
[1730952351817,1.2245,189.3,189.19,10.1492371]
[1730952352415,2.6404,189.24,189.17,10.1492371]
[1730952353016,2.6404,189.24,189.19,2.6411]
[1730952354720,2.6401,189.26,189.2,12.7900371]
[1730952354920,4.7445,189.3,189.2,12.7900371]
[1730952356022,2.6402,189.26,189.2,12.7900371]
[1730952358619,4.7445,189.3,189.2,12.7900371]
[1730952358620,2.6402,189.25,189.2,12.7900371]
[1730952360123,20.5745,189.3,189.2,12.7900371]
[1730952360330,25.9792371,189.28,189.17,10.1492371]
[1730952360521,25.9792371,189.28,189.14,10.1492371]
[1730952360721,15.83,189.26,189.14,10.1492371]
[1730952360921,2.6411,189.19,189.14,10.1492371]
[1730952361121,2.6411,189.19,189.12,10.1492371]
[1730952361324,2.6411,189.19,189.13,2.6419]
[1730952362227,2.4306,189.22,189.13,2.6419]
[1730952362422,2.4306,189.22,189.12,12.7912371]
[1730952362934,2.6413,189.18,189.12,12.7912371]
[1730952363326,2.4306,189.22,189.12,10.1492371]
[1730952363630,2.4306,189.22,189.14,10.1492371]
[1730952363932,1.2611,189.25,189.17,10.1492371]
[1730952366033,2.6405,189.23,189.17,12.7905371]
[1730952368524,1.2611,189.25,189.18,2.6412]
[1730952368525,2.6404,189.24,189.18,2.6412]
[1730952368727,2.6404,189.24,189.17,10.1492371]
[1730952369734,2.6404,189.24,189.17,12.7904371]
[1730952372840,2.6405,189.23,189.17,12.7904371]
[1730952373840,1.2611,189.25,189.17,10.1492371]
[1730952374232,2.6408,189.22,189.17,10.1492371]
[1730952374845,1.2611,189.25,189.17,10.1492371]
[1730952375141,2.6405,189.23,189.17,10.1492371]
[1730952375836,2.6409,189.2,189.14,15.2807371]
[1730952376043,2.6409,189.2,189.14,2.6417]
[1730952376235,17.63054126,189.25,189.11,3.52]
[1730952376236,10.1492371,189.22,189.11,3.52]
[1730952376437,2.6412,189.18,189.12,2.6419]
[1730952376731,2.6412,189.18,189.11,3.52]
[1730952377241,2.6412,189.18,189.13,2.6419]
[1730952380241,10.1492371,189.22,189.13,2.6419]
[1730952380645,9.74020416,189.23,189.13,10.1492371]
[1730952380842,3.52,189.23,189.14,2.6417]
[1730952381049,2.6411,189.19,189.14,2.6417]
[1730952381346,6.22020416,189.24,189.13,10.1492371]
[1730952381642,2.6413,189.18,189.13,12.7911371]
[1730952382038,2.6413,189.18,189.14,2.6418]
[1730952382542,6.22359535,189.24,189.13,10.1492371]
[1730952382736,2.6414,189.17,189.13,10.1492371]
[1730952382942,25.9792371,189.22,189.1,10.1492371]
[1730952383143,2.6418,189.14,189.1,2.6423]
[1730952383347,3.52,189.18,189.07,10.1492371]
[1730952383637,2.6426,189.09,189.04,2.6432]
[1730952383839,11.3455371,189.17,189.05,10.1492371]
[1730952384241,11.3455371,189.17,189.06,2.6428]
[1730952385043,2.6418,189.14,189.06,2.6428]
[1730952385239,11.3455371,189.17,189.05,12.7921371]
[1730952385443,11.3455371,189.17,189.05,10.1492371]
[1730952385850,1.1963,189.17,189.08,10.1492371]
[1730952386150,2.6419,189.14,189.08,10.1492371]
[1730952386352,1.1963,189.17,189.08,10.1492371]
[1730952387047,4.6963,189.17,189.08,10.1492371]
[1730952387352,2.6416,189.15,189.08,12.7917371]
[1730952387547,4.6963,189.17,189.02,3.5]
[1730952387751,14.8455371,189.17,189.05,10.1492371]
[1730952389051,2.642,189.13,189.06,2.6429]
[1730952389251,14.8455371,189.17,189.05,10.1492371]
[1730952389552,2.642,189.13,189.05,12.7922371]
[1730952389751,14.8455371,189.17,189.05,12.7922371]
[1730952390048,2.642,189.13,189.05,12.7922371]
[1730952391253,2.6421,189.12,189.05,12.7922371]
[1730952392452,2.6421,189.12,189.06,2.6429]
[1730952393841,2.6421,189.12,189.05,12.7922371]
[1730952394945,2.6421,189.12,189.05,2.643]
[1730952396340,2.6422,189.11,189.05,2.643]
[1730952398255,2.6425,189.09,189.02,10.1492371]
[1730952398846,2.6425,189.09,189.04,2.643]
[1730952399048,2.6425,189.09,189.02,10.1492371]
[1730952399254,13.6492371,189.1,189.0,2.4968]
[1730952399751,2.6428,189.07,189.0,2.4968]
[1730952400053,13.6492371,189.1,189.0,2.4968]
[1730952400655,13.6492371,189.1,188.99,2.6439]
[1730952400958,29.4792371,189.1,188.95,2.5532]
[1730952401153,29.4792371,189.1,188.99,2.6438]
[1730952401359,13.6492371,189.1,188.99,2.6438]
[1730952401552,2.6428,189.07,188.99,2.6438]
[1730952401857,13.6492371,189.1,188.99,2.6438]
[1730952402050,2.6428,189.07,188.99,2.6438]
[1730952402250,13.6492371,189.1,188.99,2.6438]
[1730952402646,13.6492371,189.1,188.95,2.5532]
[1730952402851,3.5,189.1,189.01,2.6436]
[1730952403355,3.5,189.1,188.99,10.1492371]
[1730952403356,3.5,189.1,189.0,2.6437]
[1730952404148,2.643,189.06,189.0,2.6437]
[1730952405551,10.1492371,189.09,188.97,10.1492371]
[1730952405757,11.3934371,189.09,188.97,10.1492371]
[1730952407060,2.6432,189.04,188.98,2.644]
[1730952408459,2.6433,189.03,188.98,2.644]
[1730952409868,2.6432,189.04,188.99,2.6438]
[1730952411361,11.3934371,189.09,188.99,2.6438]
[1730952411558,2.6433,189.03,188.99,2.6438]
[1730952413064,2.6433,189.03,188.97,10.1492371]
[1730952413065,2.6436,189.02,188.96,2.6443]
[1730952413261,2.6436,189.02,188.95,12.7024371]
[1730952413667,1.2258,189.14,189.01,10.1492371]
[1730952413863,1.2258,189.14,189.06,10.1492371]
[1730952414066,10.1492371,189.18,189.06,10.1492371]
[1730952414263,10.1492371,189.18,189.02,4.7398]
[1730952414264,10.1492371,189.18,189.02,7.45117193]
[1730952414565,10.1492371,189.18,189.07,10.1492371]
[1730952415067,10.1492371,189.18,189.08,2.6425]
[1730952415068,2.6419,189.14,189.08,2.6425]
[1730952415471,2.6419,189.14,189.07,10.1492371]
[1730952415769,2.6416,189.16,189.07,10.1492371]
[1730952416671,2.6413,189.18,189.11,2.6421]
[1730952417306,2.6408,189.22,189.12,10.1492371]
[1730952417500,6.20864102,189.23,189.15,10.1492371]
[1730952417794,7.40811048,189.26,189.15,10.1492371]
[1730952417997,1.1991,189.26,189.15,10.1492371]
[1730952418403,3.8393,189.26,189.18,2.6411]
[1730952421495,2.6405,189.23,189.17,10.1492371]
[1730952421699,10.1492371,189.25,189.13,3.5]
[1730952422401,10.1492371,189.22,189.13,3.5]
[1730952423005,2.6411,189.19,189.13,3.5]
[1730952423595,10.1492371,189.22,189.13,3.5]
[1730952423832,1.1991,189.26,189.13,3.5]
[1730952423833,2.6409,189.21,189.13,3.5]
[1730952424422,2.6409,189.21,189.15,10.1492371]
[1730952425612,2.6407,189.23,189.15,12.7907371]
[1730952425812,1.1991,189.26,189.15,10.1492371]
[1730952426204,2.6405,189.23,189.16,2.6415]
[1730952426411,1.1991,189.26,189.15,10.1492371]
[1730952426709,1.1991,189.26,189.17,10.1492371]
[1730952426910,2.6405,189.24,189.17,10.1492371]
[1730952427413,10.1492371,189.2,189.02,6.21137193]
[1730952427607,10.1492371,189.17,189.05,11.4435371]
[1730952428116,2.6418,189.15,189.05,11.4435371]
[1730952428310,2.6418,189.15,189.08,10.1492371]
[1730952428716,10.1492371,189.17,189.05,1.2943]
[1730952428911,10.1492371,189.17,189.05,11.4435371]
[1730952429415,2.642,189.13,189.07,10.1492371]
[1730952429614,10.1492371,189.17,189.07,10.1492371]
[1730952430715,2.6418,189.14,189.07,10.1492371]
[1730952430913,10.1492371,189.17,189.07,10.1492371]
[1730952431329,2.6418,189.15,189.1,2.6423]
[1730952431507,2.6418,189.15,189.07,10.1492371]
[1730952431713,2.6418,189.15,189.1,2.6423]
[1730952432014,2.6415,189.16,189.1,2.6423]
[1730952432917,2.6415,189.16,189.11,2.6421]
[1730952434914,2.6417,189.15,189.07,10.1492371]
[1730952435120,1.1972,189.18,189.07,10.1492371]
[1730952435827,1.1972,189.18,189.06,10.1492371]
[1730952436019,1.1972,189.18,189.07,2.6427]
[1730952436319,1.1972,189.18,189.06,10.1492371]
[1730952436513,1.1972,189.18,189.08,2.6426]
[1730952437219,11.3464371,189.18,189.08,2.6426]
[1730952437704,10.1492371,189.15,189.05,2.643]
[1730952438122,10.1492371,189.15,189.04,10.1492371]
[1730952438364,10.1492371,189.13,189.03,2.6432]
[1730952439211,2.6426,189.09,189.02,12.7926371]
[1730952439407,10.1492371,189.13,189.02,2.6434]
[1730952439611,10.1492371,189.07,188.86,6.17538143]
[1730952439816,2.6437,189.01,188.92,2.6448]
[1730952440019,13.6492371,189.03,188.92,2.6448]
[1730952440813,2.6439,188.99,188.92,2.6448]
[1730952441011,2.6439,188.99,188.91,2.645]
[1730952441710,2.6439,188.99,188.9,10.1492371]
[1730952441909,2.6439,188.99,188.92,2.6448]
[1730952442102,2.6441,188.98,188.9,10.1492371]
[1730952442301,10.1492371,189.01,188.87,17.3247371]
[1730952442510,10.1492371,189.01,188.87,13.8247371]
[1730952442707,2.6444,188.95,188.87,11.4691371]
[1730952443101,2.6444,188.95,188.88,2.6453]
[1730952443809,2.6446,188.94,188.87,1.3199]
[1730952443998,2.6446,188.94,188.85,10.1492371]
[1730952444197,14.8754371,188.97,188.85,10.1492371]
[1730952444400,2.6448,188.93,188.86,2.6457]
[1730952445999,14.8754371,188.97,188.84,13.6492371]
[1730952447090,2.6448,188.93,188.87,2.6456]
[1730952447292,14.8754371,188.97,188.84,13.6492371]
[1730952447485,1.2262,188.97,188.9,10.1492371]
[1730952447791,1.2262,188.97,188.91,2.645]
[1730952449089,3.8704,188.97,188.91,2.645]
[1730952450693,10.1492371,189.02,188.93,10.1492371]
[1730952450900,10.1492371,189.02,188.93,12.7938371]
[1730952451489,2.6437,189.01,188.93,12.7938371]
[1730952451690,10.1492371,189.02,188.93,12.7938371]
[1730952452095,2.6437,189.0,188.93,12.7938371]
[1730952452395,10.1492371,189.02,188.94,2.6445]
[1730952452788,2.6436,189.01,188.94,2.6445]
[1730952454191,2.6438,189.0,188.94,2.6445]
[1730952455400,2.6436,189.01,188.95,2.6444]
[1730952456195,10.1492371,189.02,188.93,10.1492371]
[1730952456399,2.6437,189.0,188.94,2.6445]
[1730952456896,2.644,188.99,188.93,2.6447]
[1730952457498,2.644,188.99,188.94,2.6446]
[1730952459206,10.1492371,189.02,188.94,2.6446]
[1730952459411,10.1492371,189.02,188.91,1.2281]
[1730952459610,2.6441,188.98,188.93,2.6447]
[1730952463103,10.1492371,188.99,188.9,2.645]
[1730952463306,10.1492371,188.99,188.86,10.1492371]
[1730952463708,2.6441,188.98,188.93,2.6447]
[1730952463908,10.1492371,188.99,188.86,13.6492371]
[1730952464408,10.1492371,188.99,188.83,1.2443]
[1730952464409,10.1492371,188.99,188.87,10.1492371]
[1730952464606,10.1492371,188.99,188.89,10.1492371]
[1730952464809,1.2087,189.04,188.89,10.1492371]
[1730952465114,11.3579371,189.04,188.92,10.1492371]
[1730952465301,2.6436,189.02,188.97,2.6441]
[1730952467712,14.0011371,189.04,188.98,2.644]
[1730952467906,3.8519,189.04,188.98,2.644]
[1730952468102,1.2715,189.06,188.94,10.1492371]
[1730952468305,2.6426,189.08,189.02,2.6434]
[1730952468711,2.6426,189.08,188.99,10.1492371]
[1730952469011,2.6425,189.09,189.02,2.6433]
[1730952469214,13.6492371,189.1,189.02,2.6433]
[1730952470111,10.1492371,189.08,188.98,3.5]
[1730952470712,2.6433,189.03,188.96,12.7935371]
[1730952470920,10.1492371,189.05,188.93,15.9167371]
[1730952471215,2.6433,189.04,188.97,2.644]
[1730952471410,2.6433,189.04,188.93,15.9167371]
[1730952471612,10.1492371,189.05,188.93,15.9167371]
[1730952471811,2.6434,189.03,188.96,2.6443]
[1730952472017,2.6434,189.03,188.93,1.1936]
[1730952472018,10.1492371,189.03,188.93,1.1936]
[1730952472318,10.1492371,189.03,188.93,2.6447]
[1730952472319,2.6438,189.0,188.93,2.6447]
[1730952472508,1.2606,189.02,188.93,2.6447]
[1730952473011,2.6439,188.99,188.93,2.6447]
[1730952475319,2.644,188.98,188.93,2.6447]
[1730952475711,10.1492371,189.0,188.91,3.5]
[1730952476519,10.1492371,189.0,188.92,2.6448]
[1730952476720,10.1492371,189.0,188.91,3.5]
[1730952476940,2.644,188.99,188.93,2.6446]
[1730952477247,4.7406,189.02,188.92,10.1492371]
[1730952477738,2.6439,188.99,188.92,10.1492371]
[1730952478655,2.6439,188.99,188.94,2.6445]
[1730952480049,1.2606,189.02,188.92,10.1492371]
[1730952480246,1.2606,189.02,188.91,3.5]
[1730952480247,15.87,189.11,188.97,10.1492371]
[1730952480457,10.1492371,189.09,188.98,3.48]
[1730952480656,2.6429,189.06,188.99,2.6438]
[1730952480867,10.1492371,189.09,188.99,2.6438]
[1730952481255,2.643,189.06,188.99,2.6438]
[1730952481967,2.4991,189.11,188.99,10.1492371]
[1730952482265,1.3035,189.11,189.05,10.1492371]
[1730952482466,0.24961,189.12,189.07,10.1492371]
[1730952482700,0.24961,189.12,189.11,2.6422]
[1730952483448,0.24961,189.12,189.1,6.1223]
[1730952483653,0.24961,189.12,189.1,3.48]
[1730952484052,3.741,189.22,189.1,3.48]
[1730952484560,3.741,189.22,189.11,2.6422]
[1730952485359,2.6414,189.17,189.05,1.2488]
[1730952485568,16.2386929,189.2,189.07,16.2386929]
[1730952485988,2.6412,189.19,189.07,16.2386929]
[1730952486166,3.741,189.22,189.1,16.2386929]
[1730952486357,1.3035,189.22,189.11,3.48]
[1730952486554,3.9443,189.22,189.13,16.2386929]
[1730952486864,2.6408,189.22,189.13,16.2386929]
[1730952487354,3.6776,189.27,189.11,3.48]
[1730952487551,16.2386929,189.25,189.12,3.48]
[1730952488457,16.2386929,189.25,189.12,6.122]
[1730952488856,2.6412,189.18,189.1,18.8808929]
[1730952489059,2.6412,189.18,189.11,3.48]
[1730952489255,16.2386929,189.25,189.11,3.48]
[1730952489462,2.6415,189.16,189.09,2.6423]
[1730952489693,2.6415,189.16,189.1,3.48]
[1730952490361,2.6416,189.15,189.1,3.48]
[1730952491258,16.2386929,189.21,189.08,2.6425]
[1730952491463,16.2386929,189.21,189.08,6.1225]
[1730952492365,2.6417,189.15,189.08,6.1225]
[1730952492564,16.2386929,189.21,189.08,6.1225]
[1730952492768,16.2386929,189.21,189.08,3.48]
[1730952493063,19.35,189.23,189.08,3.48]
[1730952493064,19.7186929,189.23,189.08,3.48]
[1730952493664,2.6415,189.16,189.09,2.6423]
[1730952493866,19.7186929,189.23,189.08,3.48]
[1730952494056,2.6415,189.16,189.1,2.6423]
[1730952494264,2.6415,189.16,189.08,3.48]
[1730952494593,19.7186929,189.23,189.08,3.48]
[1730952495365,2.6418,189.14,189.08,6.1226]
[1730952495868,2.6421,189.12,189.06,2.6428]
[1730952496170,3.48,189.17,189.04,16.2386929]
[1730952496368,3.9009,189.16,189.04,16.2386929]
[1730952496572,2.6424,189.1,189.04,16.2386929]
[1730952496966,20.1395929,189.16,189.03,3.48]
[1730952497762,2.6425,189.1,189.03,6.1232]
[1730952498171,20.1395929,189.16,189.0,16.2386929]
[1730952498405,20.1395929,189.16,189.02,2.6435]
[1730952498768,16.2386929,189.15,189.02,2.6435]
[1730952499363,16.2386929,189.15,189.03,2.6433]
[1730952499873,2.6426,189.08,189.01,2.6435]
[1730952500897,2.6429,189.07,189.0,2.6436]
[1730952501071,2.6429,189.07,188.99,19.7186929]
[1730952501659,2.6429,189.07,189.01,2.6435]
[1730952502074,2.6429,189.07,189.0,2.6436]
[1730952502369,2.6429,189.07,188.98,3.48]
[1730952502868,2.6429,189.07,189.01,2.6435]
[1730952504456,2.6429,189.07,188.98,3.48]
[1730952505262,2.6429,189.07,189.01,2.6435]
[1730952505456,2.643,189.05,189.0,10.16017737]
[1730952505664,3.48,189.11,189.01,2.6436]
[1730952505957,3.48,189.11,189.0,10.16017737]
[1730952506453,10.16017737,189.12,188.98,3.48]
[1730952506654,3.46,189.13,189.02,10.16017737]
[1730952507151,2.6424,189.1,189.05,2.6429]
[1730952507946,2.6419,189.13,189.07,12.80287737]
[1730952508358,3.9009,189.16,189.07,10.16017737]
[1730952508743,3.9009,189.16,189.1,10.16017737]
[1730952508744,1.3108,189.16,189.1,10.16017737]
[1730952509347,1.3108,189.16,189.1,12.80247737]
[1730952509843,2.6414,189.17,189.11,2.6422]
[1730952511154,2.6415,189.16,189.11,2.6422]
[1730952511446,2.6415,189.16,189.1,13.62017737]
[1730952512246,2.6413,189.18,189.1,16.26247737]
[1730952512439,1.2409,189.21,189.1,16.26247737]
[1730952512841,2.6413,189.18,189.1,16.26247737]
[1730952513042,1.2409,189.21,189.1,16.26247737]
[1730952514151,2.6415,189.16,189.1,16.26247737]
[1730952514352,10.16017737,189.19,189.08,3.46]
[1730952514850,1.2725,189.18,189.08,3.46]
[1730952515151,1.2725,189.18,189.08,6.1026]
[1730952515152,2.6418,189.14,189.08,6.1026]
[1730952515549,1.2725,189.18,189.09,2.6424]
[1730952515550,2.6417,189.15,189.09,2.6424]
[1730952515754,1.2725,189.18,189.08,3.46]
[1730952516149,2.6417,189.15,189.09,2.6425]
[1730952518254,2.6418,189.14,189.09,2.6425]
[1730952521155,1.2725,189.18,189.08,3.46]
[1730952522052,2.6418,189.14,189.09,2.6424]
[1730952522447,2.6418,189.14,189.1,2.6423]
[1730952522653,2.6418,189.14,189.1,12.80247737]
[1730952524056,2.6416,189.16,189.11,2.6421]
[1730952526056,2.6411,189.19,189.12,10.16017737]
[1730952526254,1.2409,189.21,189.12,10.16017737]
[1730952527054,2.6411,189.19,189.13,2.6418]
[1730952528065,1.2409,189.21,189.08,3.46]
[1730952528263,1.2409,189.21,189.09,10.16017737]
[1730952528759,2.6412,189.18,189.13,2.6419]
[1730952529360,1.2409,189.21,189.13,2.6419]
[1730952529563,2.6414,189.17,189.09,10.16017737]
[1730952529865,2.6414,189.17,189.12,2.642]
[1730952530463,2.6414,189.17,189.11,2.6421]
[1730952530655,2.6414,189.17,189.09,10.16017737]
[1730952531163,1.2409,189.21,189.12,10.16017737]
[1730952531358,2.6412,189.18,189.12,10.16017737]
[1730952531558,1.2409,189.21,189.12,10.16017737]
[1730952531759,1.2409,189.21,189.12,12.80207737]
[1730952531965,2.6414,189.17,189.12,12.80207737]
[1730952533266,2.6412,189.18,189.13,2.6418]
[1730952536262,1.2409,189.21,189.1,2.6423]
[1730952536464,1.2409,189.21,189.1,10.16017737]
[1730952536769,2.6415,189.17,189.13,2.6418]
[1730952537395,1.2409,189.21,189.13,10.16017737]
[1730952538198,1.2409,189.21,189.13,12.80197737]
[1730952538199,2.6414,189.17,189.13,12.80197737]
[1730952539300,2.6414,189.17,189.14,6.49465089]
[1730952539500,6.49465089,189.18,189.13,6.49465089]
[1730952539704,2.6415,189.16,189.13,6.49465089]
[1730952540501,6.49465089,189.17,189.09,3.46]
[1730952540703,2.6419,189.14,189.11,6.49465089]
[1730952542300,2.6423,189.11,189.05,2.643]
[1730952542601,2.6423,189.11,189.09,6.49465089]
[1730952543008,6.49465089,189.13,189.03,1.2383]
[1730952543199,6.49465089,189.1,189.04,6.49465089]
[1730952543655,1.2237,189.12,189.06,6.49465089]
[1730952543821,7.71835089,189.12,189.06,6.49465089]
[1730952544703,7.71835089,189.12,189.05,6.49465089]
[1730952545203,6.49465089,189.1,189.05,6.49465089]
[1730952545947,2.6427,189.08,189.05,6.49465089]
[1730952546609,1.2237,189.12,189.07,6.49465089]
[1730952546918,6.49465089,189.14,189.09,6.49465089]
[1730952547225,1.1893,189.16,189.11,6.49465089]
[1730952547484,2.6265,189.17,189.06,3.46]
[1730952547485,9.12115089,189.17,189.13,6.49465089]
[1730952547738,2.6265,189.17,189.13,6.49465089]
[1730952548414,2.6416,189.16,189.13,6.49465089]
[1730952549309,2.6416,189.16,189.1,10.14932963]
[1730952549504,2.6413,189.18,189.11,2.6421]
[1730952550506,8.61575875,189.22,189.1,10.14932963]
[1730952550809,2.6411,189.19,189.13,12.79122963]
[1730952552106,2.4044,189.22,189.13,10.14932963]
[1730952552304,1.1943,189.22,189.15,10.14932963]
[1730952552805,3.8351,189.22,189.16,2.6414]
[1730952553439,6.22958102,189.25,189.16,2.6414]
[1730952553611,1.1977,189.3,189.18,10.14932963]
[1730952553612,10.14932963,189.28,189.18,10.14932963]
[1730952555122,2.6404,189.24,189.19,2.641]
[1730952555306,2.6404,189.24,189.18,10.14932963]
[1730952555796,6.22958102,189.28,189.2,10.14932963]
[1730952556010,6.22958102,189.33,189.23,10.14932963]
[1730952556209,6.22958102,189.33,189.18,3.46]
[1730952556210,6.22958102,189.33,189.25,10.14932963]
[1730952557182,2.6396,189.3,189.25,10.14932963]
[1730952557300,6.22958102,189.33,189.24,3.46]
[1730952557503,6.22958102,189.33,189.23,10.14932963]
[1730952557504,10.14932963,189.31,189.2,3.46]
[1730952557705,10.14932963,189.21,188.99,0.6704913]
[1730952557901,10.14932963,189.18,189.07,10.14932963]
[1730952558212,10.14932963,189.15,189.05,10.14932963]
[1730952559207,10.14932963,189.15,189.04,2.6431]
[1730952559208,2.6422,189.11,189.04,2.6431]
[1730952559413,2.6422,189.11,189.04,12.79242963]
[1730952560110,2.6422,189.11,189.04,10.14932963]
[1730952561496,10.14932963,189.15,189.04,10.14932963]
[1730952561697,10.14932963,189.15,189.02,14.02742963]
[1730952562790,2.6424,189.1,189.02,14.02742963]
[1730952563497,2.6422,189.11,189.04,10.14932963]
[1730952563975,2.642,189.13,189.05,2.643]
[1730952564573,13.60932963,189.15,189.04,10.14932963]
[1730952564778,3.46,189.17,189.07,10.14932963]
[1730952565380,2.642,189.13,189.07,10.14932963]
[1730952565583,3.46,189.17,189.07,10.14932963]
[1730952565978,3.46,189.17,189.02,1.2347]
[1730952565979,3.46,189.17,189.05,2.643]
[1730952567182,2.6421,189.12,189.05,2.643]
[1730952570181,2.6421,189.12,189.04,10.14932963]
[1730952570182,10.14932963,189.15,189.04,10.14932963]
[1730952570786,2.642,189.13,189.05,2.643]
[1730952571082,3.44,189.16,189.04,10.14932963]
[1730952571277,3.44,189.16,189.07,10.14932963]
[1730952572182,2.6418,189.15,189.07,12.79202963]
[1730952572583,2.6415,189.16,189.09,2.6425]
[1730952573478,2.6412,189.18,189.12,2.642]
[1730952574685,2.6411,189.19,189.13,2.6419]
[1730952575279,1.2694,189.2,189.15,2.6416]
[1730952576788,1.2694,189.2,189.17,2.6413]
[1730952577092,8.73150215,189.25,189.15,10.14932963]
[1730952578279,18.88083178,189.25,189.15,10.14932963]
[1730952578682,18.88083178,189.25,189.13,3.44]
[1730952579696,18.88083178,189.25,189.15,10.14932963]
[1730952581789,8.73150215,189.25,189.15,10.14932963]
[1730952582088,26.44748365,189.26,189.18,10.14932963]
[1730952582393,16.11132963,189.29,189.18,10.14932963]